bitfinex/quotes_BTCUSD_20230403
["timestamp","ask_amount","ask_price","bid_price","bid_amount"]
[1680492335136,0.24245967,27688.0,27687.0,0.01388947]
[1680492335363,0.23162467,27688.0,27687.0,0.01388947]
[1680492335579,0.28162467,27688.0,27687.0,0.01388947]
[1680492336246,0.23162467,27688.0,27687.0,0.01388947]
[1680492336662,0.28162467,27688.0,27687.0,0.01388947]
[1680492337331,0.23162467,27688.0,27687.0,0.01388947]
[1680492337751,0.15332467,27688.0,27687.0,0.01388947]
[1680492338184,0.20332467,27688.0,27687.0,0.01388947]
[1680492340468,0.15332467,27688.0,27687.0,0.01388947]
[1680492340680,0.20332467,27688.0,27687.0,0.01388947]
[1680492341746,0.15332467,27688.0,27687.0,0.01388947]
[1680492342443,0.20332467,27688.0,27687.0,0.01388947]
[1680492343006,0.15332467,27688.0,27687.0,0.01388947]
[1680492343234,0.16090067,27688.0,27687.0,0.01388947]
[1680492343444,0.07542467,27688.0,27687.0,0.01388947]
[1680492343641,0.07542467,27688.0,27687.0,0.04831336]
[1680492348120,0.08288367,27688.0,27687.0,0.04831336]
[1680492348557,0.13288367,27688.0,27687.0,0.04831336]
[1680492348769,0.13277782,27688.0,27687.0,0.04831336]
[1680492349452,0.08277782,27688.0,27687.0,0.04831336]
[1680492351998,0.16067782,27688.0,27687.0,0.04831336]
[1680492352418,0.16067782,27688.0,27687.0,0.03642389]
[1680492354645,2.19558705,27688.0,27687.0,0.03642389]
[1680492354871,0.89595279,27688.0,27687.0,0.03642389]
[1680492356578,0.89595279,27688.0,27687.0,0.002]
[1680492356789,0.89612439,27688.0,27687.0,0.002]
[1680492357250,0.89595279,27688.0,27687.0,0.002]
[1680492358105,0.94595279,27688.0,27687.0,0.002]
[1680492359159,0.89595279,27688.0,27687.0,0.002]
[1680492359523,0.89495279,27688.0,27687.0,0.002]
[1680492360179,2.19460858,27688.0,27687.0,0.002]
[1680492360702,0.89495279,27688.0,27687.0,0.002]
[1680492361067,0.90345279,27688.0,27687.0,0.002]
[1680492361386,2.44581499,27688.0,27687.0,0.002]
[1680492361602,2.83464999,27688.0,27687.0,0.002]
[1680492361813,3.45101538,27688.0,27687.0,0.03642389]
[1680492362014,3.63323845,27688.0,27687.0,0.03642389]
[1680492362567,3.75474712,27688.0,27687.0,0.03442389]
[1680492362784,3.43957689,27688.0,27681.0,0.00018]
[1680492362992,3.43957689,27688.0,27680.0,0.10018]
[1680492362993,0.4576,27683.0,27680.0,0.10018]
[1680492363198,0.4576,27683.0,27682.0,0.19461987]
[1680492363199,0.81257497,27683.0,27682.0,0.19461987]
[1680492363401,0.83191097,27683.0,27682.0,0.14489277]
[1680492363612,0.83191097,27683.0,27682.0,0.14483277]
[1680492363838,0.91021097,27683.0,27682.0,0.14483277]
[1680492364046,2.59613251,27683.0,27681.0,0.00018]
[1680492364269,2.59613251,27683.0,27680.0,0.1]
[1680492364270,0.5366,27681.0,27680.0,0.1]
[1680492364487,1.05781197,27681.0,27680.0,0.10012]
[1680492364753,1.06631197,27681.0,27680.0,0.10012]
[1680492364964,1.06631197,27681.0,27680.0,0.1]
[1680492365214,1.36631197,27681.0,27680.0,0.1]
[1680492365631,1.41631197,27681.0,27680.0,0.1]
[1680492366302,1.58194757,27681.0,27680.0,0.1]
[1680492366525,3.14863079,27681.0,27680.0,0.1]
[1680492366741,4.14880239,27681.0,27680.0,0.1]
[1680492366952,3.14880239,27681.0,27680.0,0.1]
[1680492367156,4.87580239,27681.0,27680.0,0.1]
[1680492367367,5.1051545,27681.0,27680.0,0.1]
[1680492367576,5.26089201,27681.0,27680.0,0.1]
[1680492367795,3.87580128,27681.0,27680.0,0.1]
[1680492368414,5.26178541,27681.0,27680.0,0.1]
[1680492368833,5.28878541,27681.0,27680.0,0.1]
[1680492369055,5.26178541,27681.0,27680.0,0.1]
[1680492369263,5.28878541,27681.0,27680.0,0.1]
[1680492369470,5.34360198,27681.0,27680.0,0.1]
[1680492369685,3.95761785,27681.0,27680.0,0.1]
[1680492370987,3.95744625,27681.0,27680.0,0.09165498]
[1680492373146,3.93044625,27681.0,27680.0,0.09165498]
[1680492373357,3.77681625,27681.0,27680.0,0.09165498]
[1680492373999,3.58418065,27681.0,27680.0,0.09165498]
[1680492374442,3.58435225,27681.0,27680.0,0.09165498]
[1680492374659,3.42825225,27681.0,27680.0,0.09165498]
[1680492375117,3.42808065,27681.0,27680.0,0.09165498]
[1680492375539,3.45508065,27681.0,27680.0,0.09165498]
[1680492376171,3.81028889,27681.0,27680.0,0.09165498]
[1680492377422,3.99108049,27681.0,27680.0,0.09165498]
[1680492377841,3.94090889,27681.0,27680.0,0.09165498]
[1680492378366,3.58570065,27681.0,27680.0,0.09165498]
[1680492379339,3.40508065,27681.0,27680.0,0.09165498]
[1680492379543,3.58571065,27681.0,27680.0,0.09165498]
[1680492379954,3.58527595,27681.0,27680.0,0.09165498]
[1680492380645,3.58527595,27681.0,27680.0,0.09110443]
[1680492381261,3.55827595,27681.0,27680.0,0.09110443]
[1680492381482,3.84909704,27681.0,27680.0,0.09110443]
[1680492382102,3.82209704,27681.0,27680.0,0.09110443]
[1680492382319,3.84909704,27681.0,27680.0,0.09110443]
[1680492383607,3.58527595,27681.0,27680.0,0.09110443]
[1680492384028,2.58527595,27681.0,27680.0,0.09110443]
[1680492384246,3.58527595,27681.0,27680.0,0.09110443]
[1680492384721,3.58527595,27681.0,27677.0,0.04165662]
[1680492384722,0.43528723,27678.0,27677.0,0.04165662]
[1680492384941,1.4879322,27678.0,27677.0,0.04165662]
[1680492385161,3.12514297,27678.0,27676.0,0.0216]
[1680492385439,2.50013457,27677.0,27676.0,0.01052615]
[1680492385655,3.51097357,27677.0,27676.0,0.01052615]
[1680492386086,4.21114517,27677.0,27676.0,0.01052615]
[1680492386723,4.23814517,27677.0,27676.0,0.01052615]
[1680492389721,4.59335341,27677.0,27676.0,0.01052615]
[1680492389927,4.23814517,27677.0,27676.0,0.01052615]
[1680492391081,0.05,27676.0,27675.0,0.0216]
[1680492391281,2.98265257,27676.0,27675.0,0.0216]
[1680492391737,4.28265257,27676.0,27675.0,0.0216]
[1680492391950,4.12183457,27676.0,27675.0,0.0216]
[1680492392156,4.13267357,27676.0,27675.0,0.0216]
[1680492392779,4.15967357,27676.0,27675.0,0.0216]
[1680492392998,4.13267357,27676.0,27675.0,0.0216]
[1680492393628,4.15967357,27676.0,27675.0,0.0216]
[1680492394255,4.15975517,27676.0,27675.0,0.0216]
[1680492394476,4.15984517,27676.0,27675.0,0.0216]
[1680492394899,4.15967357,27676.0,27675.0,0.0216]
[1680492396059,3.38223457,27676.0,27675.0,0.0216]
[1680492396285,0.727,27676.0,27675.0,0.0216]
[1680492396720,0.034589,27676.0,27675.0,0.04999588]
[1680492397361,0.034589,27676.0,27675.0,0.05017588]
[1680492397790,0.007589,27676.0,27675.0,0.05017588]
[1680492398014,0.27331328,27679.0,27677.0,0.14471277]
[1680492398238,0.007382,27678.0,27677.0,0.25862676]
[1680492398452,0.27331328,27679.0,27677.0,0.14489277]
[1680492399350,0.3,27678.0,27677.0,0.14489277]
[1680492399569,0.307253,27678.0,27677.0,0.14489277]
[1680492399806,0.3,27678.0,27677.0,0.14489277]
[1680492400683,0.315,27678.0,27677.0,0.14489277]
[1680492402548,0.322555,27678.0,27677.0,0.14489277]
[1680492402980,0.3151716,27678.0,27677.0,0.14471277]
[1680492403561,0.315,27678.0,27677.0,0.14489277]
[1680492403772,0.322297,27678.0,27677.0,0.14489277]
[1680492404224,0.315,27678.0,27677.0,0.14489277]
[1680492406444,0.3,27678.0,27677.0,0.14489277]
[1680492406664,0.315,27678.0,27677.0,0.14489277]
[1680492410018,0.322267,27678.0,27677.0,0.14489277]
[1680492410727,0.315,27678.0,27677.0,0.17191338]
[1680492412061,0.315,27678.0,27677.0,0.24981338]
[1680492412725,0.3226826,27678.0,27677.0,0.24963338]
[1680492412932,0.315,27678.0,27677.0,0.24981338]
[1680492413137,0.322271,27678.0,27677.0,0.24981338]
[1680492414623,0.32217972,27678.0,27677.0,0.24981338]
[1680492416115,0.31490872,27678.0,27677.0,0.24981338]
[1680492416323,0.32253972,27678.0,27677.0,0.24981338]
[1680492422159,0.32253972,27678.0,27677.0,0.17191338]
[1680492422386,0.32253972,27678.0,27677.0,0.17173338]
[1680492423997,0.33337772,27678.0,27677.0,0.17173338]
[1680492424422,1.63359021,27678.0,27677.0,0.17173338]
[1680492424867,1.63359021,27678.0,27677.0,0.14471277]
[1680492425077,1.61859021,27678.0,27677.0,0.14471277]
[1680492425354,1.64559021,27678.0,27677.0,0.14471277]
[1680492425580,2.7378034,27678.0,27676.0,0.00012]
[1680492425819,2.04368746,27677.0,27675.0,0.0216]
[1680492426057,1.76273049,27676.0,27675.0,0.0216]
[1680492426272,2.12620546,27676.0,27675.0,0.0216]
[1680492426482,2.50450546,27676.0,27675.0,0.0216]
[1680492426749,2.66763934,27676.0,27675.0,0.0216]
[1680492426986,2.79650465,27676.0,27675.0,0.0216]
[1680492427202,2.79650465,27676.0,27671.0,0.02258283]
[1680492427203,0.38,27674.0,27671.0,0.1672956]
[1680492427438,0.4583,27672.0,27671.0,0.1672956]
[1680492427632,0.82411597,27672.0,27671.0,0.14696777]
[1680492427897,1.13261597,27672.0,27671.0,0.14696777]
[1680492428566,1.15961597,27672.0,27671.0,0.14696777]
[1680492431700,1.21326658,27672.0,27671.0,0.14696777]
[1680492432150,1.29156658,27672.0,27671.0,0.14696777]
[1680492433481,1.26456658,27672.0,27671.0,0.14696777]
[1680492433694,1.29156658,27672.0,27671.0,0.14696777]
[1680492437175,1.26456658,27672.0,27671.0,0.14696777]
[1680492437389,1.29156658,27672.0,27671.0,0.14696777]
[1680492437699,1.29173818,27672.0,27671.0,0.14696777]
[1680492437909,1.29156658,27672.0,27671.0,0.14696777]
[1680492439149,1.26456658,27672.0,27671.0,0.14696777]
[1680492440132,1.29156658,27672.0,27671.0,0.14696777]
[1680492448862,1.29156658,27672.0,27671.0,0.14696777]
[1680492450443,3.06839388,27672.0,27671.0,0.002255]
[1680492450674,3.06822228,27672.0,27671.0,0.002255]
[1680492450894,3.04122228,27672.0,27671.0,0.002255]
[1680492451112,3.28543841,27672.0,27671.0,0.002255]
[1680492451798,3.31261001,27672.0,27671.0,0.002255]
[1680492451979,3.28561001,27672.0,27671.0,0.002255]
[1680492452200,3.31261001,27672.0,27671.0,0.002255]
[1680492452412,3.28561001,27672.0,27671.0,0.002255]
[1680492452619,3.04139388,27672.0,27671.0,0.002255]
[1680492453713,3.06839388,27672.0,27671.0,0.002255]
[1680492455654,3.04139388,27672.0,27671.0,0.002255]
[1680492456972,3.06839388,27672.0,27671.0,0.002255]
[1680492457485,2.58075907,27672.0,27671.0,0.002255]
[1680492457940,2.42485907,27672.0,27671.0,0.002255]
[1680492460624,2.41635907,27672.0,27671.0,0.002255]
[1680492460858,1.6813841,27672.0,27671.0,0.002255]
[1680492461098,1.3812125,27672.0,27671.0,0.020324]
[1680492461328,0.027,27672.0,27671.0,0.098524]
[1680492461579,0.027,27672.0,27671.0,0.150606]
[1680492461824,0.05351413,27674.0,27673.0,0.14471277]
[1680492462067,1.36123301,27674.0,27673.0,0.14471277]
[1680492462296,1.30771888,27674.0,27673.0,0.14471277]
[1680492462968,1.60771888,27674.0,27673.0,0.14471277]
[1680492463905,2.34269385,27674.0,27673.0,0.14471277]
[1680492465444,2.36969385,27674.0,27673.0,0.14471277]
[1680492465664,2.34269385,27674.0,27673.0,0.14471277]
[1680492465880,2.36969385,27674.0,27673.0,0.14471277]
[1680492466507,2.37819385,27674.0,27673.0,0.14471277]
[1680492467618,2.36969385,27674.0,27673.0,0.14471277]
[1680492467843,0.68927097,27674.0,27673.0,0.14471277]
[1680492468272,0.74457858,27674.0,27673.0,0.14471277]
[1680492468529,1.12457858,27674.0,27673.0,0.14471277]
[1680492468764,1.12457858,27674.0,27673.0,0.1718533]
[1680492469225,0.74457858,27674.0,27673.0,0.1718533]
[1680492469442,0.73728258,27674.0,27673.0,0.1718533]
[1680492469673,0.74490558,27674.0,27673.0,0.1718533]
[1680492469887,0.38230761,27674.0,27673.0,0.1718533]
[1680492470108,0.08230761,27674.0,27673.0,0.1718533]
[1680492470334,0.38230761,27674.0,27673.0,0.1718533]
[1680492470551,0.38977261,27674.0,27673.0,0.1718533]
[1680492471042,0.38977261,27674.0,27673.0,1.1514247]
[1680492471043,9e-05,27674.0,27673.0,1.1514247]
[1680492471252,6e-05,27675.0,27673.0,1.1514247]
[1680492471253,2.17139555,27681.0,27679.0,0.14471277]
[1680492471484,2.17139555,27681.0,27680.0,0.11373399]
[1680492471485,0.08594024,27681.0,27680.0,0.11373399]
[1680492471946,1.38600479,27681.0,27680.0,0.018063]
[1680492472668,0.00021,27681.0,27680.0,0.018063]
[1680492472894,0.006,27681.0,27680.0,0.0457086]
[1680492473337,0.21480555,27683.0,27682.0,0.14471277]
[1680492473573,1.52243984,27683.0,27682.0,0.14471277]
[1680492474011,1.69357453,27683.0,27682.0,0.14471277]
[1680492474469,1.82243984,27683.0,27682.0,0.14471277]
[1680492474689,1.60784429,27683.0,27682.0,0.14471277]
[1680492475161,0.007798,27683.0,27682.0,0.14471277]
[1680492475378,0.38594024,27684.0,27682.0,0.14471277]
[1680492475594,0.014131,27683.0,27682.0,0.14571277]
[1680492475811,0.00621,27683.0,27682.0,0.14571277]
[1680492476234,0.30021,27684.0,27682.0,0.14460753]
[1680492476458,0.30021,27684.0,27682.0,0.16266953]
[1680492476918,0.006,27683.0,27682.0,0.16466953]
[1680492477806,0.006,27683.0,27682.0,0.19063665]
[1680492478278,0.006,27683.0,27682.0,0.17257465]
[1680492478484,0.38594024,27686.0,27682.0,0.17057465]
[1680492478686,0.057694,27685.0,27682.0,0.17757465]
[1680492479010,0.007904,27685.0,27682.0,0.17057465]
[1680492479225,0.007694,27685.0,27682.0,0.17057465]
[1680492479463,0.02376001,27689.0,27685.0,0.57460753]
[1680492479703,0.23874552,27691.0,27690.0,0.14460753]
[1680492479704,0.02397001,27691.0,27690.0,0.14460753]
[1680492479938,0.02102926,27695.0,27690.0,0.96721449]
[1680492480146,0.02102926,27695.0,27694.0,0.14460753]
[1680492480147,0.02087926,27695.0,27694.0,0.14460753]
[1680492480383,0.02087926,27695.0,27694.0,0.25834152]
[1680492480605,0.02087926,27695.0,27694.0,0.27639552]
[1680492480820,0.02087926,27695.0,27694.0,0.16266153]
[1680492481051,0.02087926,27695.0,27694.0,0.21408553]
[1680492481324,0.02087926,27695.0,27694.0,0.16266153]
[1680492481530,0.02087926,27695.0,27694.0,0.21740453]
[1680492481968,0.02087926,27695.0,27694.0,0.16266153]
[1680492482194,0.02087926,27695.0,27694.0,0.21642553]
[1680492482855,0.02087926,27695.0,27694.0,0.16266153]
[1680492483300,0.02087926,27695.0,27694.0,0.21528353]
[1680492483514,0.02087926,27695.0,27694.0,0.16866153]
[1680492484393,0.02087926,27695.0,27694.0,0.16266153]
[1680492485717,0.02087926,27695.0,27694.0,0.18833807]
[1680492489050,0.02087926,27695.0,27694.0,0.24257207]
[1680492489268,0.02087926,27695.0,27694.0,0.18833807]
[1680492490156,0.04977826,27695.0,27694.0,0.18833807]
[1680492490608,0.04977826,27695.0,27694.0,0.19433807]
[1680492491277,0.04977826,27695.0,27694.0,0.18833807]
[1680492491515,0.04977826,27695.0,27694.0,0.20133807]
[1680492492392,0.04977826,27695.0,27694.0,0.25767607]
[1680492493305,0.04977826,27695.0,27694.0,0.24467607]
[1680492493521,0.04977826,27695.0,27694.0,0.25767607]
[1680492493737,0.04977826,27695.0,27694.0,0.24467607]
[1680492494425,0.04977826,27695.0,27694.0,0.25767607]
[1680492494684,0.04977826,27695.0,27694.0,0.24467607]
[1680492495122,0.04977826,27695.0,27694.0,0.68665104]
[1680492495343,0.04977826,27695.0,27694.0,0.69965104]
[1680492496483,0.04977826,27695.0,27694.0,0.95427504]
[1680492496717,0.04977826,27695.0,27694.0,1.01709504]
[1680492496944,0.04977826,27695.0,27694.0,1.00421504]
[1680492497166,0.04977826,27695.0,27694.0,1.03221504]
[1680492497382,0.04977826,27695.0,27694.0,1.00427504]
[1680492498053,0.04977826,27695.0,27694.0,1.03227504]
[1680492498268,0.04977826,27695.0,27694.0,1.00427504]
[1680492498499,0.04977826,27695.0,27694.0,1.03227504]
[1680492498724,0.04977826,27695.0,27694.0,0.98227504]
[1680492498894,0.04977826,27695.0,27694.0,1.03227504]
[1680492499698,0.04977826,27695.0,27694.0,0.98227504]
[1680492500114,0.04977826,27695.0,27694.0,1.03227504]
[1680492500546,0.04977826,27695.0,27694.0,0.98227504]
[1680492500767,0.04732572,27695.0,27694.0,0.98209504]
[1680492501790,0.0448907,27695.0,27694.0,0.98209504]
[1680492502001,0.0448907,27695.0,27694.0,0.89509504]
[1680492502823,0.04247307,27695.0,27694.0,0.86709504]
[1680492503275,0.04247307,27695.0,27694.0,0.92356299]
[1680492503483,0.04247307,27695.0,27694.0,0.89556299]
[1680492503679,0.04007271,27695.0,27694.0,0.92368299]
[1680492504822,0.0376895,27695.0,27694.0,0.92356299]
[1680492505775,0.00642431,27695.0,27694.0,0.97356299]
[1680492506416,0.00642431,27695.0,27694.0,1.35356299]
[1680492506619,0.00407502,27695.0,27694.0,1.35356299]
[1680492507046,0.00407502,27695.0,27694.0,1.30356299]
[1680492507670,0.00174251,27695.0,27694.0,1.30356299]
[1680492508723,0.02376001,27700.0,27699.0,0.14460753]
[1680492508939,0.02376001,27700.0,27699.0,0.58219831]
[1680492509865,0.02376001,27700.0,27699.0,0.60519947]
[1680492510065,0.02376001,27700.0,27699.0,0.62519947]
[1680492510266,0.02376001,27700.0,27699.0,0.60519947]
[1680492510639,0.02376001,27700.0,27699.0,0.62531947]
[1680492510906,0.02376001,27700.0,27699.0,0.62519947]
[1680492512276,0.02376001,27700.0,27699.0,0.67638447]
[1680492513258,0.02376001,27700.0,27699.0,0.65638447]
[1680492513502,0.02376001,27700.0,27699.0,0.68238447]
[1680492513732,0.02376001,27700.0,27699.0,0.65638447]
[1680492513949,0.02376001,27700.0,27699.0,0.68238447]
[1680492516394,0.02376001,27700.0,27699.0,0.65638447]
[1680492516617,0.02376001,27700.0,27699.0,0.68438447]
[1680492517519,0.02376001,27700.0,27699.0,0.68450447]
[1680492517739,0.02376001,27700.0,27699.0,0.68438447]
[1680492520746,0.02376001,27700.0,27699.0,0.65638447]
[1680492521428,0.02376001,27700.0,27699.0,0.68438447]
[1680492521636,0.02376001,27700.0,27699.0,0.65638447]
[1680492521849,0.02376001,27700.0,27699.0,0.68438447]
[1680492522518,0.02376001,27700.0,27699.0,0.65638447]
[1680492524312,0.02376001,27700.0,27699.0,0.70638447]
[1680492524521,0.02376001,27700.0,27699.0,0.68438447]
[1680492524692,0.02376001,27700.0,27699.0,0.73438447]
[1680492525318,0.02376001,27700.0,27699.0,0.76238447]
[1680492525521,0.02376001,27700.0,27699.0,0.70638447]
[1680492525724,0.02376001,27700.0,27699.0,0.73438447]
[1680492526208,0.02376001,27700.0,27699.0,0.68438447]
[1680492526616,0.02376001,27700.0,27699.0,1.06438447]
[1680492527219,0.02376001,27700.0,27699.0,1.45069819]
[1680492527433,0.02376001,27700.0,27699.0,2.20712119]
[1680492527854,0.02150944,27700.0,27699.0,2.20712119]
[1680492528253,0.02376001,27702.0,27701.0,0.7]
[1680492528459,0.02376001,27702.0,27701.0,2.30364072]
[1680492528681,0.02376001,27702.0,27701.0,2.3255144]
[1680492528682,0.02157264,27702.0,27701.0,2.3255144]
[1680492529713,0.01942741,27702.0,27701.0,2.3255144]
[1680492530328,0.01942741,27702.0,27701.0,2.3535144]
[1680492530928,0.01730679,27702.0,27701.0,2.3535144]
[1680492531346,0.01724679,27702.0,27701.0,2.3535144]
[1680492531561,0.01724679,27702.0,27701.0,2.3255144]
[1680492531780,0.02376001,27705.0,27704.0,0.2]
[1680492531996,0.02376001,27705.0,27704.0,1.29047897]
[1680492532208,0.02376001,27705.0,27704.0,1.59897897]
[1680492532637,0.02376001,27705.0,27704.0,1.7435865]
[1680492532823,0.02165656,27705.0,27704.0,1.76462102]
[1680492533680,0.01956813,27705.0,27704.0,1.79262102]
[1680492534549,0.01956813,27705.0,27704.0,1.76462102]
[1680492534778,0.01749462,27705.0,27704.0,1.79262102]
[1680492534971,0.01749462,27705.0,27704.0,1.97309102]
[1680492535668,0.01749462,27705.0,27704.0,1.94509102]
[1680492535880,0.01543592,27705.0,27704.0,1.97309102]
[1680492536741,0.01340644,27705.0,27704.0,1.97309102]
[1680492537902,0.01139836,27705.0,27704.0,1.97309102]
[1680492538113,0.01139836,27705.0,27704.0,1.94509102]
[1680492538519,0.01139836,27705.0,27704.0,1.97309102]
[1680492538757,0.00940463,27705.0,27704.0,1.97309102]
[1680492539563,0.00940463,27705.0,27704.0,1.94509102]
[1680492539779,0.00742514,27705.0,27704.0,1.94509102]
[1680492539993,0.00742514,27705.0,27704.0,1.97309102]
[1680492540884,0.00545979,27705.0,27704.0,1.97309102]
[1680492541714,0.00350847,27705.0,27704.0,1.97309102]
[1680492542836,0.00157109,27705.0,27704.0,1.97309102]
[1680492543297,0.14354596,27705.0,27704.0,0.65793002]
[1680492543529,0.00157109,27705.0,27704.0,0.65794302]
[1680492544012,0.02397001,27709.0,27707.0,0.14460753]
[1680492544224,0.02397001,27709.0,27707.0,0.16265253]
[1680492544439,0.02397001,27709.0,27707.0,0.14460753]
[1680492544866,0.02397001,27709.0,27708.0,0.01749907]
[1680492545360,0.01897001,27709.0,27708.0,0.01749907]
[1680492545595,0.01876001,27709.0,27708.0,0.01749907]
[1680492545814,0.01876001,27709.0,27707.0,0.17306212]
[1680492546015,0.01870001,27709.0,27707.0,0.19110712]
[1680492546903,0.01870001,27709.0,27707.0,0.17306212]
[1680492547122,0.01870001,27709.0,27707.0,0.19110712]
[1680492547339,0.01870001,27709.0,27707.0,0.17306212]
[1680492547552,0.01870001,27709.0,27707.0,0.19110712]
[1680492547768,0.01870001,27709.0,27707.0,0.19810712]
[1680492549519,0.01870001,27709.0,27707.0,0.19110712]
[1680492550170,0.01870001,27709.0,27707.0,0.19810712]
[1680492550856,0.01870001,27709.0,27707.0,0.18006212]
[1680492551852,0.01870001,27709.0,27708.0,0.01757774]
[1680492552126,0.10570001,27709.0,27708.0,0.01757774]
[1680492552920,0.10570001,27709.0,27707.0,0.19822712]
[1680492553209,0.10570001,27709.0,27707.0,0.19810712]
[1680492553649,0.10570001,27709.0,27707.0,0.17306212]
[1680492554089,0.10570001,27709.0,27707.0,0.19110712]
[1680492555230,0.10570001,27709.0,27707.0,0.19810712]
[1680492555728,0.10570001,27709.0,27707.0,0.19110712]
[1680492557791,0.10570001,27709.0,27707.0,0.19810712]
[1680492560785,0.10570001,27709.0,27708.0,0.01772201]
[1680492561830,0.10570001,27709.0,27707.0,0.19810712]
[1680492562358,0.1557,27708.0,27707.0,0.19810712]
[1680492562611,0.1557,27708.0,27707.0,0.19828712]
[1680492563101,0.1557,27708.0,27707.0,0.19128712]
[1680492564627,0.1557,27708.0,27707.0,0.19828712]
[1680492565491,0.01870001,27709.0,27707.0,0.60941409]
[1680492565705,0.01870001,27709.0,27708.0,0.41001197]
[1680492565918,0.01870001,27709.0,27708.0,0.53632797]
[1680492566126,0.01870001,27709.0,27708.0,0.53678097]
[1680492566568,0.01870001,27709.0,27708.0,0.53684097]
[1680492567553,0.01870001,27709.0,27708.0,0.91684097]
[1680492567973,0.01859137,27709.0,27708.0,1.00669209]
[1680492569171,0.01859137,27709.0,27708.0,1.05669209]
[1680492569857,0.01859137,27709.0,27708.0,1.07669209]
[1680492570086,0.01859137,27709.0,27708.0,1.18229209]
[1680492570310,0.01859137,27709.0,27708.0,1.16229209]
[1680492570727,0.01859137,27709.0,27708.0,1.19029209]
[1680492571403,0.01859137,27709.0,27708.0,1.91174628]
[1680492571618,0.01859137,27709.0,27708.0,1.92024628]
[1680492571839,0.01859137,27709.0,27708.0,1.89224628]
[1680492572053,0.01859137,27709.0,27708.0,1.73734628]
[1680492572244,0.01859137,27709.0,27708.0,1.66744628]
[1680492573179,0.01859137,27709.0,27708.0,1.60915529]
[1680492573841,0.01859137,27709.0,27708.0,1.58115529]
[1680492574290,0.01859137,27709.0,27708.0,1.5993733]
[1680492574501,0.01859137,27709.0,27708.0,1.67062967]
[1680492574692,0.01859137,27709.0,27708.0,1.64256967]
[1680492574909,0.01859137,27709.0,27708.0,1.75676967]
[1680492575331,0.01859137,27709.0,27708.0,1.71319922]
[1680492575539,0.01859137,27709.0,27708.0,1.71325922]
[1680492575752,0.01693401,27709.0,27708.0,1.72965286]
[1680492576192,0.01693401,27709.0,27708.0,1.90267243]
[1680492576420,0.01693401,27709.0,27708.0,1.87467243]
[1680492576644,0.01693401,27709.0,27708.0,1.90267243]
[1680492576895,0.01529282,27709.0,27708.0,1.87467243]
[1680492577109,0.01529282,27709.0,27708.0,1.90267243]
[1680492577328,0.01529282,27709.0,27708.0,1.33355131]
[1680492577577,0.01529282,27709.0,27708.0,1.31842423]
[1680492577793,0.01368614,27709.0,27708.0,1.35992423]
[1680492578227,0.01368614,27709.0,27708.0,1.24572423]
[1680492578437,0.01368614,27709.0,27708.0,1.54572423]
[1680492578753,0.01208202,27709.0,27708.0,1.54572423]
[1680492579180,0.01208202,27709.0,27708.0,1.45946573]
[1680492579820,0.01048936,27709.0,27708.0,1.45946573]
[1680492580684,0.00890807,27709.0,27708.0,1.45946573]
[1680492580891,0.00890807,27709.0,27708.0,1.48746573]
[1680492581094,0.00890807,27709.0,27708.0,1.45946573]
[1680492581291,0.00890807,27709.0,27708.0,1.48746573]
[1680492581737,0.00733808,27709.0,27708.0,1.48746573]
[1680492582594,0.00733808,27709.0,27708.0,1.48758573]
[1680492582816,0.0057793,27709.0,27708.0,1.48758573]
[1680492583662,0.00423166,27709.0,27708.0,1.48746573]
[1680492584541,0.00423166,27709.0,27708.0,1.45946573]
[1680492584843,0.00269507,27709.0,27708.0,1.45946573]
[1680492585237,0.00269507,27709.0,27708.0,1.48746573]
[1680492585448,0.00269507,27709.0,27708.0,1.43746573]
[1680492585858,0.00116648,27709.0,27708.0,1.43746573]
[1680492586926,0.02376001,27710.0,27709.0,0.38]
[1680492587119,0.02376001,27710.0,27709.0,1.10748397]
[1680492587965,0.02376001,27710.0,27709.0,1.13548397]
[1680492594720,0.02376001,27710.0,27709.0,1.22228397]
[1680492594925,0.02376001,27710.0,27709.0,1.24032198]
[1680492595199,0.02376001,27710.0,27709.0,1.29032198]
[1680492595617,0.02376001,27710.0,27709.0,1.27228397]
[1680492596046,0.02376001,27710.0,27709.0,1.24428397]
[1680492596724,0.02376001,27710.0,27709.0,1.19428397]
[1680492596952,0.02376001,27710.0,27709.0,1.24428397]
[1680492597185,0.02376001,27710.0,27709.0,1.25278397]
[1680492597398,0.02376001,27710.0,27709.0,1.27137641]
[1680492597750,0.02376001,27710.0,27709.0,1.27131641]
[1680492597957,0.02376001,27710.0,27709.0,1.38551491]
[1680492598366,0.02376001,27710.0,27709.0,1.35751491]
[1680492598706,1e-08,27710.0,27709.0,1.38551491]
[1680492599858,1e-08,27710.0,27709.0,1.35751491]
[1680492600072,0.01593641,27711.0,27709.0,1.35751491]
[1680492600306,0.01593641,27711.0,27710.0,1.3199915]
[1680492600518,0.01593641,27711.0,27710.0,1.3741235]
[1680492600743,0.01593641,27711.0,27710.0,1.2873235]
[1680492601207,0.01093641,27711.0,27710.0,1.2873235]
[1680492601844,0.01093641,27711.0,27710.0,1.3153235]
[1680492602494,0.01093641,27711.0,27710.0,1.2873235]
[1680492602712,0.01093641,27711.0,27710.0,1.3153235]
[1680492607669,0.01093641,27711.0,27710.0,1.51492001]
[1680492607915,0.01093641,27711.0,27710.0,1.48692001]
[1680492608141,0.01093641,27711.0,27710.0,1.51492001]
[1680492608796,0.01093641,27711.0,27710.0,1.39162001]
[1680492609025,0.01093641,27711.0,27710.0,1.41962001]
[1680492609467,0.01093641,27711.0,27710.0,1.54900559]
[1680492609913,0.01093641,27711.0,27710.0,1.52100559]
[1680492610580,0.01093641,27711.0,27710.0,1.39162001]
[1680492610835,0.01093641,27711.0,27710.0,1.373582]
[1680492611309,0.01093641,27711.0,27710.0,1.401582]
[1680492611531,0.01093641,27711.0,27710.0,1.44470908]
[1680492611761,0.01093641,27711.0,27710.0,1.47206739]
[1680492611990,0.01093641,27711.0,27710.0,0.93468181]
[1680492612185,0.01093641,27711.0,27710.0,0.66268181]
[1680492613581,0.01093641,27711.0,27710.0,0.74904849]
[1680492614244,0.01093641,27711.0,27710.0,0.66268181]
[1680492614888,0.01093641,27711.0,27710.0,0.63468181]
[1680492615113,0.01093641,27711.0,27710.0,0.66068181]
[1680492615334,0.01093641,27711.0,27710.0,0.72104849]
[1680492615542,0.01093641,27711.0,27710.0,0.74904849]
[1680492615802,0.01093641,27711.0,27710.0,0.72104849]
[1680492616014,0.01093641,27711.0,27710.0,0.74704849]
[1680492616233,0.01093641,27711.0,27710.0,0.72104849]
[1680492617101,0.01093641,27711.0,27710.0,0.74904849]
[1680492617726,0.01093641,27711.0,27710.0,0.39407352]
[1680492618856,0.09773641,27711.0,27710.0,0.34046452]
[1680492619066,0.09773641,27711.0,27710.0,0.31246452]
[1680492619290,0.09773641,27711.0,27710.0,0.33846452]
[1680492622208,0.01093641,27711.0,27710.0,0.33846452]
[1680492622428,0.01093641,27711.0,27710.0,0.39217552]